bitfinex-derivatives/quotes_SOLF0:USTF0_20250411
["timestamp","ask_amount","ask_price","bid_price","bid_amount"]
[1744339399131,8.80231825,114.42,114.39,8.7474]
[1744339399330,8.80231825,114.42,114.4,8.59124783]
[1744339399527,8.80231825,114.42,114.39,8.7474]
[1744339399732,8.80231825,114.42,114.4,8.5952774]
[1744339400033,8.80231825,114.42,114.39,8.7474]
[1744339400232,8.80231825,114.42,114.4,8.59672442]
[1744339400529,8.80231825,114.42,114.39,8.7474]
[1744339400730,8.80231825,114.42,114.4,8.59701773]
[1744339400924,8.80231825,114.42,114.39,8.7474]
[1744339401125,8.80231825,114.42,114.4,8.59720479]
[1744339401330,8.80231825,114.42,114.39,8.7474]
[1744339401530,8.80231825,114.42,114.4,8.59709009]
[1744339401829,8.80231825,114.42,114.39,8.7474]
[1744339402031,8.80231825,114.42,114.4,8.5972045]
[1744339402233,8.80231825,114.42,114.39,8.7474]
[1744339402424,8.80231825,114.42,114.4,8.59675948]
[1744339402623,0.05671825,114.42,114.4,7.12036197]
[1744339403125,0.05671825,114.42,114.41,24.46036581]
[1744339403327,0.05671825,114.42,114.41,28.30783739]
[1744339403521,0.05671825,114.42,114.41,28.3081236]
[1744339403722,7.17708022,114.42,114.41,8.59360384]
[1744339404024,0.05671825,114.42,114.39,7.12036197]
[1744339404229,0.05671825,114.42,114.4,14.55563187]
[1744339404425,37.66,114.44,114.41,19.56209407]
[1744339404626,37.66,114.44,114.42,8.59417541]
[1744339404828,37.66,114.44,114.42,8.7451]
[1744339405130,37.66,114.44,114.41,7.12036197]
[1744339405331,46.4045,114.44,114.42,8.59295803]
[1744339405533,46.4618931,114.44,114.41,8.80251825]
[1744339405727,46.4618931,114.44,114.42,8.59305809]
[1744339405928,46.4618931,114.44,114.41,8.80251825]
[1744339406121,46.4618931,114.44,114.42,8.59251095]
[1744339406425,46.4618931,114.44,114.41,8.80251825]
[1744339406624,46.4618931,114.44,114.42,8.59383472]
[1744339406822,46.4618931,114.44,114.41,8.80251825]
[1744339407125,46.4618931,114.44,114.42,17.33964626]
[1744339407325,46.4618931,114.44,114.42,8.7456]
[1744339408241,37.7173931,114.44,114.42,8.7456]
[1744339408435,37.7173931,114.44,114.41,7.17708022]
[1744339408735,37.7173931,114.44,114.42,8.60332916]
[1744339409030,37.7173931,114.44,114.43,8.60318726]
[1744339409845,37.7173931,114.44,114.42,8.7451]
[1744339410233,37.7173931,114.44,114.43,8.60823691]
[1744339410934,46.4614931,114.44,114.42,8.7451]
[1744339411435,37.7173931,114.44,114.42,8.7451]
[1744339415230,0.0573931,114.44,114.42,8.7451]
[1744339415435,0.0573931,114.44,114.43,19.59178086]
[1744339416438,0.0573931,114.44,114.43,28.33668086]
[1744339416834,46.3215,114.48,114.46,8.7425]
[1744339417738,46.3215,114.48,114.45,15.86326197]
[1744339417940,8.7418,114.47,114.46,8.61121321]
[1744339418136,44.76633695,114.48,114.45,0.06514488]
[1744339418327,7.12036197,114.46,114.45,0.06514488]
[1744339418740,15.86296197,114.46,114.45,0.06514488]
[1744339431560,53.44296197,114.46,114.45,0.06514488]
[1744339435069,8.7452,114.43,114.4,20.17326197]
[1744339435268,8.7452,114.43,114.41,12.50872436]
[1744339435566,8.7452,114.43,114.42,12.50872436]
[1744339435968,46.2452,114.43,114.42,8.63959193]
[1744339436364,8.7456,114.42,114.41,0.04896647]
[1744339436565,15.86596197,114.42,114.41,8.69344483]
[1744339437371,15.86596197,114.42,114.41,0.04896647]
[1744339440380,53.42343141,114.43,114.41,0.04896647]
[1744339441880,8.7456,114.42,114.41,0.04896647]
[1744339442678,15.86596197,114.42,114.41,0.04896647]
[1744339442880,46.30306944,114.43,114.41,0.04896647]
[1744339443367,8.7456,114.42,114.41,0.04896647]
[1744339444283,15.86596197,114.42,114.41,0.04896647]
[1744339444579,8.7483,114.39,114.36,2.2689]
[1744339444777,8.7483,114.39,114.37,12.49523621]
[1744339444976,8.7483,114.39,114.38,12.49523621]
[1744339445176,8.7483,114.39,114.38,8.63019275]
[1744339447683,8.7483,114.39,114.38,8.62245099]
[1744339451288,0.06587181,114.4,114.38,8.62245099]
[1744339451586,0.06587181,114.4,114.37,7.12036197]
[1744339451787,0.06587181,114.4,114.38,19.71038256]
[1744339452087,0.06587181,114.4,114.38,11.088]
[1744339452883,44.64036197,114.43,114.38,9.46036197]
[1744339453185,44.3608,114.49,114.41,7.12036197]
[1744339453488,7.12036197,114.47,114.42,10.83291028]
[1744339453688,7.12036197,114.47,114.42,10.9584]
[1744339453987,8.7429,114.46,114.43,8.61193405]
[1744339454184,8.79795539,114.46,114.43,0.06587181]
[1744339454891,8.79795539,114.46,114.43,8.81037181]
[1744339455785,8.79795539,114.46,114.43,0.06587181]
[1744339456086,8.7435,114.45,114.43,0.06587181]
[1744339456687,44.69541736,114.46,114.43,0.06587181]
[1744339456876,7.12036197,114.44,114.43,0.06587181]
[1744339457285,15.86446197,114.44,114.43,0.06587181]
[1744339459490,8.7465,114.41,114.39,2.3244]
[1744339460784,8.8073217,114.41,114.39,2.3244]
[1744339460987,0.0608217,114.41,114.39,2.3244]
[1744339461190,0.0608217,114.41,114.39,11.0722]
[1744339461694,0.0608217,114.41,114.4,8.63307579]
[1744339461889,0.0608217,114.41,114.4,12.49869732]
[1744339462095,0.0608217,114.41,114.4,8.63307579]
[1744339462293,0.0608217,114.41,114.4,21.24793165]
[1744339462492,0.0608217,114.41,114.4,8.63307579]
[1744339462694,8.8072217,114.41,114.4,8.63307579]
[1744339462888,0.0608217,114.41,114.4,8.63307579]
[1744339463396,44.62036197,114.43,114.4,12.50203577]
[1744339463593,44.62036197,114.43,114.41,8.63307579]
[1744339463797,8.7457,114.42,114.39,18.19246197]
[1744339464093,8.7457,114.42,114.4,8.63954715]
[1744339464292,8.7457,114.42,114.41,8.63954715]
[1744339464494,53.36536197,114.43,114.41,8.63954715]
[1744339464694,37.56036107,114.43,114.4,0.05980744]
[1744339464897,37.56036107,114.43,114.41,8.64044211]
[1744339465086,37.56036107,114.43,114.41,8.7463]
[1744339465492,37.56036107,114.43,114.42,8.63859317]
[1744339465997,46.30526107,114.43,114.42,8.63859317]
[1744339466900,37.56036107,114.43,114.42,8.63859317]
[1744339467400,44.54036197,114.46,114.42,12.50419485]
[1744339467599,53.28306197,114.46,114.43,17.38089777]
[1744339467898,53.28306197,114.46,114.43,8.7442]
[1744339468095,46.1627,114.46,114.44,8.63232534]
[1744339468295,46.1627,114.46,114.43,8.7442]
[1744339468491,46.1627,114.46,114.44,8.62943368]
[1744339468696,46.1627,114.46,114.43,8.7442]
[1744339468697,46.22653427,114.46,114.43,8.79945358]
[1744339468891,46.22653427,114.46,114.44,8.62828503]
[1744339469098,46.22653427,114.46,114.43,8.79945358]
[1744339469299,46.22653427,114.46,114.44,8.62711013]
[1744339469496,46.22653427,114.46,114.43,8.79945358]
[1744339469695,8.7434,114.45,114.43,0.05525358]
[1744339470098,37.48383427,114.46,114.43,0.05525358]
[1744339472297,8.7441,114.44,114.43,0.05525358]
[1744339481405,8.7463,114.42,114.38,50.7559]
[1744339481612,8.7463,114.42,114.39,21.26198232]
[1744339481804,8.7463,114.42,114.4,8.64324956]
[1744339482003,37.42,114.43,114.38,42.0076]
[1744339482199,37.42,114.43,114.39,12.51423341]
[1744339482408,37.42,114.43,114.4,8.64335392]
[1744339482608,0.05677361,114.42,114.4,0.06371809]
[1744339482811,8.7464,114.41,114.4,0.06371809]
[1744339483012,8.7464,114.41,114.4,8.70657487]
[1744339484611,8.80277361,114.42,114.4,8.70657487]
[1744339484799,8.80277361,114.42,114.4,0.06371809]
[1744339487308,0.05677361,114.42,114.41,8.6426291]
[1744339487512,37.42,114.46,114.41,14.63799324]
[1744339487707,37.42,114.46,114.42,8.6426291]
[1744339487912,37.42,114.46,114.43,8.6426291]
[1744339488211,37.42,114.49,114.44,12.50321977]
[1744339488412,37.42,114.49,114.45,12.50321977]
[1744339488611,0.06523787,114.48,114.46,8.63763888]
[1744339488810,0.06523787,114.48,114.45,0.06048838]
[1744339489017,0.06523787,114.48,114.46,8.62814776]
[1744339489219,0.06523787,114.48,114.45,8.80338838]
[1744339489416,0.06523787,114.48,114.46,8.62479396]
[1744339489617,0.06523787,114.48,114.46,8.7426]
[1744339489818,0.06523787,114.48,114.45,0.06048838]
[1744339490019,0.06523787,114.48,114.46,8.62730769]
[1744339490210,0.06523787,114.48,114.45,0.06048838]
[1744339490621,0.06523787,114.48,114.46,8.62548169]
[1744339490817,0.06523787,114.48,114.45,0.06048838]
[1744339491018,8.7418,114.47,114.46,8.62694184]
[1744339491216,8.7418,114.47,114.45,0.06048838]
[1744339494726,8.80663787,114.48,114.45,8.80378838]
[1744339494927,8.80663787,114.48,114.46,8.6253797]
[1744339495226,8.80663787,114.48,114.45,8.80378838]
[1744339495528,0.06523787,114.48,114.46,17.36754066]
[1744339495725,0.06523787,114.48,114.45,0.06048838]
[1744339496023,0.06523787,114.48,114.46,8.62453772]
[1744339496222,0.06523787,114.48,114.45,8.80318838]
[1744339497525,8.80673787,114.48,114.45,0.06048838]
[1744339498229,8.80673787,114.48,114.45,8.80378838]
[1744339501929,8.7424,114.47,114.45,0.06048838]
[1744339503031,0.06523787,114.48,114.45,0.06048838]
[1744339503235,7.11606948,114.47,114.45,0.06048838]
[1744339504435,8.7426,114.46,114.45,0.06048838]
[1744339506334,0.06523787,114.48,114.45,0.06048838]
[1744339506525,731.12074639,114.56,114.46,53.08359412]
[1744339506834,8.737,114.54,114.5,7.11606948]
[1744339507332,8.737,114.54,114.48,11.10737524]
[1744339507634,48.44737524,114.53,114.49,8.61613773]
[1744339507835,0.05897006,114.52,114.5,0.06254756]
[1744339508938,8.7388,114.51,114.5,0.06254756]
[1744339509738,8.79717006,114.52,114.5,0.06254756]
[1744339510236,0.05897006,114.52,114.5,0.06254756]
[1744339510436,0.05897006,114.52,114.5,8.80144756]
[1744339510636,0.05897006,114.52,114.5,0.06254756]
[1744339511941,8.7388,114.51,114.5,0.06254756]
[1744339514948,8.79727006,114.52,114.5,0.06254756]
[1744339516148,8.7388,114.51,114.5,0.06254756]
[1744339516448,0.05897006,114.52,114.5,0.06254756]
[1744339517353,8.7388,114.51,114.5,0.06254756]
[1744339517545,0.05897006,114.52,114.5,0.06254756]
[1744339519048,8.79707006,114.52,114.5,0.06254756]
[1744339519247,0.05897006,114.52,114.5,0.06254756]
[1744339519448,0.05897006,114.52,114.5,8.80204756]
[1744339519947,0.05897006,114.52,114.5,0.06254756]
[1744339520651,0.05897006,114.52,114.5,8.80184756]
[1744339521753,8.79707006,114.52,114.5,8.80184756]
[1744339522052,0.05897006,114.52,114.5,0.06254756]
[1744339522452,8.7388,114.51,114.5,0.06254756]
[1744339528859,8.79737006,114.52,114.5,0.06254756]
[1744339529863,0.05897006,114.52,114.5,0.06254756]
[1744339530255,8.7361,114.55,114.5,11.1699228]
[1744339530559,37.24,114.56,114.51,12.4540084]
[1744339530859,37.24,114.56,114.53,8.7368]
[1744339531447,46.0346288,114.56,114.53,8.80217764]
[1744339531757,37.2991288,114.56,114.53,0.06537764]
[1744339532459,8.7362,114.55,114.53,0.06537764]
[1744339532859,37.2991288,114.56,114.53,8.80197764]
[1744339533465,0.0591288,114.56,114.53,0.06537764]
[1744339533659,0.0591288,114.56,114.54,8.59391803]
[1744339533855,0.0591288,114.56,114.53,0.06537764]
[1744339534058,0.0591288,114.56,114.54,8.59445699]
[1744339534258,0.0591288,114.56,114.55,8.7357]
[1744339534559,0.0591288,114.56,114.55,17.32346957]
[1744339534757,0.0591288,114.56,114.55,8.7357]
[1744339535463,0.0591288,114.56,114.55,17.31844058]
[1744339535961,0.0591288,114.56,114.53,2.34877764]
[1744339536261,0.0591288,114.56,114.53,0.06537764]
[1744339536465,37.2991288,114.56,114.53,0.06537764]
[1744339536966,8.7357,114.55,114.53,0.06537764]
[1744339537153,37.2991288,114.56,114.53,0.06537764]
[1744339537667,8.7357,114.55,114.53,0.06537764]
[1744339538063,37.2991288,114.56,114.53,0.06537764]
[1744339538467,46.0347288,114.56,114.53,0.06537764]
[1744339538765,37.2991288,114.56,114.53,0.06537764]
[1744339539567,8.7357,114.55,114.53,0.06537764]
[1744339539767,37.2991288,114.56,114.53,0.06537764]
[1744339540468,46.0346288,114.56,114.53,0.06537764]
[1744339540668,37.2991288,114.56,114.53,0.06537764]
[1744339541766,8.7357,114.55,114.53,0.06537764]
[1744339541968,37.2991288,114.56,114.53,0.06537764]
[1744339542163,0.0591288,114.56,114.54,8.5697355]
[1744339542372,37.24,114.59,114.54,15.50604444]
[1744339542668,37.24,114.59,114.56,8.7342]
[1744339542869,37.24,114.59,114.54,15.50604444]
[1744339543365,0.0629585,114.58,114.57,8.7338]
[1744339544569,0.0629585,114.58,114.55,0.0618406]
[1744339544570,737.9507,114.62,114.59,8.7322]
[1744339545170,737.9507,114.62,114.58,8.733]
[1744339545676,0.06465619,114.61,114.59,0.05968558]
[1744339546776,0.06465619,114.61,114.6,8.7319]
[1744339547474,45.9483,114.65,114.62,8.7302]
[1744339548375,8.7294,114.64,114.59,4.288]
[1744339548567,37.22,114.65,114.59,2.137]
[1744339548767,0.05920817,114.63,114.6,0.06390959]
[1744339549178,0.05920817,114.63,114.6,8.79530959]
[1744339549873,8.78920817,114.63,114.6,0.06390959]
[1744339550772,0.05920817,114.63,114.6,8.79530959]
[1744339551171,0.05920817,114.63,114.6,0.06390959]
[1744339551972,8.7311,114.61,114.6,0.06390959]
[1744339552172,37.22,114.62,114.6,0.06390959]
[1744339552681,48.32304444,114.62,114.6,0.06390959]
[1744339552974,8.7311,114.61,114.6,0.06390959]
[1744339554279,45.9507,114.62,114.6,0.06390959]
[1744339555073,8.7311,114.61,114.6,0.06390959]
[1744339555775,48.32304444,114.62,114.54,17.80514444]
[1744339555975,37.22,114.62,114.54,17.80514444]
[1744339556380,8.7323,114.6,114.57,8.7337]
[1744339556778,0.05923498,114.6,114.57,0.0595391]
[1744339557377,0.05923498,114.6,114.58,8.7333]
[1744339557678,0.05923498,114.6,114.57,0.0595391]
[1744339558682,8.7327,114.59,114.57,0.0595391]
[1744339558881,0.05923498,114.6,114.57,0.0595391]
[1744339559382,0.05923498,114.6,114.58,8.7333]
[1744339559980,0.05923498,114.6,114.57,8.7934391]
[1744339560178,8.79113498,114.6,114.57,0.0595391]
[1744339560484,0.05923498,114.6,114.57,0.0595391]
[1744339560678,8.7333,114.59,114.57,0.0595391]
[1744339561884,8.79143498,114.6,114.57,8.7936391]
[1744339562088,0.05923498,114.6,114.57,0.0595391]
[1744339562477,0.05923498,114.6,114.58,8.733]
[1744339562679,0.05923498,114.6,114.57,0.0595391]
[1744339562980,0.05923498,114.6,114.57,8.7933391]
[1744339564085,8.79143498,114.6,114.57,8.7933391]
[1744339564289,0.05923498,114.6,114.57,0.0595391]
[1744339565485,8.79173498,114.6,114.57,0.0595391]
[1744339565788,0.05923498,114.6,114.57,0.0595391]
[1744339566087,37.14,114.59,114.57,0.0595391]
[1744339566988,8.7334,114.58,114.57,0.0595391]
[1744339568189,37.14,114.59,114.53,37.22]
[1744339568487,11.10304444,114.58,114.51,2.2726]
[1744339568989,8.7357,114.55,114.52,8.7376]
[1744339569381,0.05647097,114.55,114.52,0.0642774]
[1744339570187,0.05647097,114.55,114.53,8.7371]
[1744339570485,0.05647097,114.55,114.52,0.0642774]
[1744339570685,8.7369,114.54,114.52,0.0642774]
[1744339570889,0.05647097,114.55,114.52,0.0642774]
[1744339571290,8.7372,114.54,114.52,0.0642774]
[1744339573688,8.79257097,114.55,114.52,0.0642774]
[1744339574902,8.7365,114.54,114.52,0.0642774]
[1744339575895,8.79257097,114.55,114.52,0.0642774]
[1744339577092,0.05647097,114.55,114.52,8.8017774]
[1744339577299,0.05647097,114.55,114.52,0.0642774]
[1744339577797,0.05647097,114.55,114.53,8.56564889]
[1744339578100,45.8928,114.59,114.53,2.1568]
[1744339578294,45.8928,114.59,114.56,8.7345]
[1744339578997,37.16,114.59,114.56,8.7345]
[1744339579199,37.21642007,114.59,114.56,8.79559406]
[1744339580499,45.94922007,114.59,114.56,8.79559406]
[1744339581394,37.21642007,114.59,114.56,8.79559406]
[1744339581794,37.21642007,114.59,114.56,0.06109406]
[1744339582303,37.21642007,114.59,114.56,8.79559406]
[1744339583602,37.21642007,114.59,114.57,8.7341]
[1744339583796,37.21642007,114.59,114.56,0.06109406]
[1744339583995,0.05642007,114.59,114.58,8.7334]
[1744339584204,37.14,114.65,114.58,60.63901974]
[1744339584406,37.14,114.65,114.6,11.10304444]
[1744339584705,730.9286,114.68,114.64,8.7288]
[1744339584904,737.5262,114.68,114.64,8.7288]
[1744339585301,739.90304444,114.68,114.65,0.05497787]
[1744339585603,8.7273,114.66,114.59,2.1772]
[1744339585803,37.08,114.65,114.6,8.55385301]
[1744339586103,8.7293,114.64,114.59,2.1772]
[1744339586301,8.7293,114.64,114.6,8.7315]
[1744339586502,37.08,114.65,114.6,8.7315]
[1744339587205,8.7302,114.63,114.61,0.05843789]
[1744339588808,8.7304,114.62,114.61,0.05843789]
[1744339589105,45.7904,114.62,114.61,0.05843789]
[1744339589704,45.7904,114.62,114.56,74.60495328]
[1744339589705,37.06,114.62,114.57,8.7338]
[1744339589913,8.7316,114.61,114.57,8.7338]
[1744339590111,48.16304444,114.62,114.56,74.60495328]
[1744339590312,8.7324,114.6,114.56,8.7349]
[1744339590608,48.16304444,114.62,114.56,8.7349]
[1744339590910,0.06030133,114.6,114.58,0.0618357]
[1744339591513,8.7328,114.59,114.58,0.0618357]
[1744339591708,45.8128,114.59,114.58,0.0618357]
[1744339594117,37.08,114.59,114.58,0.0618357]
[1744339594510,0.06030133,114.6,114.58,0.0618357]
[1744339595120,0.06030133,114.6,114.59,8.7326]
[1744339595819,0.06030133,114.6,114.58,8.7948357]
[1744339598021,0.06030133,114.6,114.59,8.7326]
[1744339598525,0.06030133,114.6,114.58,8.7949357]
[1744339598920,0.06030133,114.6,114.58,0.0618357]
[1744339599124,0.06030133,114.6,114.59,8.7326]
[1744339599323,11.10304444,114.66,114.58,0.0618357]
[1744339599522,37.08,114.66,114.6,11.10304444]
[1744339599721,700.3862,114.68,114.62,11.10304444]
[1744339599922,700.3862,114.68,114.63,8.56848537]
[1744339600118,700.3862,114.68,114.64,8.7281]
[1744339600319,45.8053,114.69,114.62,48.16304444]
[1744339600518,0.06070748,114.67,114.65,0.06057374]
[1744339601025,8.78730748,114.67,114.65,0.06057374]
[1744339601326,0.06070748,114.67,114.65,0.06057374]
[1744339602520,0.06070748,114.67,114.65,8.78797374]
[1744339602920,0.06070748,114.67,114.65,0.06057374]
[1744339603123,8.7224,114.73,114.69,8.7249]
[1744339603328,11.10304444,114.76,114.69,8.7249]
[1744339603524,11.10304444,114.76,114.66,11.10304444]
[1744339604027,37.06,114.75,114.66,11.10304444]
[1744339604333,0.05643667,114.72,114.7,0.06635662]
[1744339604623,37.11643667,114.72,114.7,0.06635662]
[1744339604824,45.83953667,114.72,114.7,0.06635662]
[1744339606732,8.7235,114.71,114.7,0.06635662]
[1744339607625,8.7253,114.69,114.64,2.1275]
[1744339607827,48.16304444,114.72,114.64,2.1275]
[1744339608135,8.7253,114.69,114.64,2.1275]
[1744339608335,8.7253,114.69,114.65,8.7279]
[1744339608834,11.10304444,114.79,114.71,8.723]
[1744339609021,6.6775,114.78,114.69,37.06]
[1744339609227,6.6775,114.78,114.74,0.06423553]
[1744339609228,0.05832327,114.76,114.74,0.06423553]
[1744339613036,8.77822327,114.76,114.74,0.06423553]
[1744339615337,8.7205,114.75,114.74,0.06423553]
[1744339618336,8.7228,114.72,114.67,6.738]
[1744339618638,36.98,114.73,114.69,8.725]
[1744339618836,36.98,114.74,114.67,4.5231]
[1744339619033,8.7232,114.72,114.68,8.7254]
[1744339619236,36.98,114.74,114.68,8.7254]
[1744339619435,0.0581213,114.72,114.7,0.06398947]
[1744339622143,0.0581213,114.72,114.7,8.78808947]
[1744339625440,0.0581213,114.72,114.71,8.7235]
[1744339626031,0.0581213,114.72,114.7,37.02398947]
[1744339626032,39.1727,114.77,114.72,8.7221]
[1744339626234,8.72,114.76,114.72,8.7221]
[1744339626943,8.7205,114.75,114.72,8.7221]
[1744339627145,8.77953999,114.75,114.73,0.06623465]
[1744339629334,0.05903999,114.75,114.73,0.06623465]
[1744339629737,0.05903999,114.75,114.74,8.7212]
[1744339629938,0.05903999,114.75,114.73,0.06623465]
[1744339630845,0.05903999,114.75,114.73,8.78813465]
[1744339631045,0.05903999,114.75,114.73,0.06623465]
[1744339631439,0.05903999,114.75,114.73,8.78783465]
[1744339631640,0.05903999,114.75,114.73,0.06623465]
[1744339632541,0.05903999,114.75,114.74,8.7212]
[1744339634347,45.6771,114.8,114.76,8.7195]
[1744339634949,45.6771,114.8,114.77,8.7189]
[1744339635149,36.96,114.8,114.77,8.7189]
[1744339635650,37.01910295,114.8,114.77,8.77887586]
[1744339636144,0.05910295,114.8,114.79,8.7174]
[1744339636950,0.05910295,114.8,114.77,0.05997586]
[1744339637349,0.05910295,114.8,114.79,8.7174]
[1744339637847,0.05910295,114.8,114.77,0.05997586]
[1744339638148,0.05910295,114.8,114.77,8.77817586]
[1744339638348,0.05910295,114.8,114.77,0.05997586]
[1744339638851,0.05910295,114.8,114.78,8.7178]
[1744339639850,0.05910295,114.8,114.77,0.05997586]
[1744339641857,0.05910295,114.8,114.79,8.7174]
[1744339643155,0.05910295,114.8,114.78,8.7178]
[1744339644152,0.05910295,114.8,114.77,0.05997586]
[1744339644746,8.7175,114.79,114.77,0.05997586]
[1744339645151,0.05910295,114.8,114.77,0.05997586]
[1744339645358,36.99910295,114.8,114.77,0.05997586]
[1744339646956,8.7182,114.78,114.77,0.05997586]
[1744339647456,8.72,114.76,114.72,56.4934283]
[1744339648552,45.5993,114.77,114.73,8.7219]
[1744339648753,0.05854591,114.75,114.73,8.77997596]
[1744339649451,0.05854591,114.75,114.73,0.05807596]
[1744339650053,8.77934591,114.75,114.73,0.05807596]
[1744339650247,0.05854591,114.75,114.73,0.05807596]
[1744339651262,8.7212,114.74,114.73,0.05807596]
[1744339652459,8.7228,114.73,114.68,11.06210899]
[1744339652655,8.7228,114.73,114.69,17.24858265]
[1744339652860,8.7228,114.72,114.69,8.725]
[1744339653059,36.9,114.74,114.67,122.25568121]
[1744339653251,36.9,114.74,114.67,74.45408121]
[1744339653453,0.055556,114.72,114.69,0.05995458]
[1744339653657,47.96210899,114.71,114.69,0.05995458]
[1744339653863,52.36380899,114.71,114.69,0.05995458]
[1744339654051,52.36380899,114.71,114.64,47.7710283]
[1744339654257,11.06210899,114.69,114.64,47.7710283]
[1744339654458,36.9,114.68,114.64,47.7710283]
[1744339655066,11.06210899,114.67,114.64,47.7710283]
[1744339655264,8.7273,114.66,114.65,0.06582069]
[1744339655460,11.12444943,114.67,114.64,47.7710283]
[1744339655665,13.17510899,114.65,114.63,95.54205662]
[1744339655965,8.7288,114.64,114.63,95.54205662]
[1744339656653,699.32,114.64,114.62,223.48897501]
[1744339656865,47.96210899,114.63,114.62,11.37337067]
[1744339657060,47.96210899,114.63,114.61,238.85514156]
[1744339657258,17.76216776,114.62,114.6,298.56892695]
[1744339657466,17.76216776,114.62,114.53,4.4424]
[1744339658162,8.7333,114.59,114.54,8.7364]
[1744339658363,36.92,114.58,114.56,0.06656228]
[1744339658864,0.05879362,114.59,114.56,0.06656228]
[1744339661067,0.05879362,114.59,114.56,8.80076228]
[1744339661467,0.05879362,114.59,114.56,0.06656228]
[1744339662067,36.92,114.61,114.56,0.06656228]
[1744339662265,36.92,114.61,114.58,8.7328]
[1744339663165,36.97730269,114.61,114.58,8.79834711]
[1744339664572,45.70850269,114.61,114.58,0.06554711]
[1744339665167,0.05730269,114.61,114.58,0.06554711]
[1744339665366,36.94,114.64,114.58,2.18154711]
[1744339665567,36.94,114.64,114.59,17.76216776]
[1744339665762,8.7284,114.65,114.59,17.76216776]
[1744339665970,36.94,114.67,114.59,54.70216776]
[1744339666470,0.06464839,114.64,114.62,0.05922208]
[1744339666972,0.06464839,114.64,114.62,8.78952208]
[1744339667670,36.94,114.67,114.63,8.7296]
[1744339668075,36.94,114.67,114.62,0.05922208]
[1744339668673,36.94,114.67,114.64,8.7284]
[1744339668972,0.06673564,114.66,114.64,8.7284]
[1744339669164,0.06673564,114.66,114.64,0.06240033]
[1744339673279,0.06673564,114.66,114.64,8.79120033]
[1744339673577,0.06673564,114.66,114.64,0.06240033]
[1744339675774,0.06673564,114.66,114.63,8.7291]
[1744339676979,0.06673564,114.66,114.63,8.78481719]
[1744339678981,0.06673564,114.66,114.63,0.05571719]
[1744339679986,0.06673564,114.66,114.64,8.7284]
[1744339680484,8.7284,114.65,114.63,0.05571719]
[1744339681085,8.79443564,114.66,114.63,0.05571719]
[1744339681887,0.06673564,114.66,114.63,0.05571719]
[1744339682685,0.06673564,114.66,114.64,8.7285]
[1744339683180,0.06673564,114.66,114.63,0.05571719]
[1744339683886,0.06673564,114.66,114.64,8.7284]
[1744339685386,28.86526712,114.66,114.64,8.7284]
[1744339685586,28.86526712,114.66,114.63,0.05571719]
[1744339686687,28.86526712,114.66,114.64,8.7284]
[1744339687781,79.88686935,114.66,114.64,8.7284]
[1744339687991,79.88686935,114.66,114.63,0.05571719]
[1744339689287,79.88686935,114.66,114.64,8.7283]
[1744339689895,241.3123616,114.65,114.64,8.7283]
[1744339692900,241.3123616,114.65,114.63,8.78471719]
[1744339693697,108.83819272,114.64,114.63,8.78471719]
[1744339695410,108.83819272,114.64,114.63,0.05571719]
[1744339695707,145.71819272,114.64,114.63,0.05571719]
[1744339695902,286.9211616,114.64,114.63,0.05571719]
[1744339698304,520.43514664,114.64,114.6,10.9575]
[1744339698511,511.70634664,114.64,114.6,10.9575]
[1744339698805,511.70634664,114.64,114.6,2.2258]
[1744339699006,511.70634664,114.64,114.61,8.5601062]
[1744339699215,474.82634664,114.64,114.63,8.7296]
[1744339699402,474.82634664,114.64,114.63,8.65522689]
[1744339700319,254.18020078,114.64,114.63,8.65522689]
[1744339701017,254.18020078,114.64,114.62,11.01056495]
[1744339701316,254.18020078,114.64,114.62,0.05566495]
[1744339701513,291.06020078,114.64,114.62,0.05566495]
[1744339702014,49.78431867,114.63,114.62,0.05566495]
[1744339703112,8.7321,114.6,114.57,11.0667]
[1744339703311,36.88,114.61,114.57,2.3331]
[1744339703506,47.96358802,114.61,114.5,36.88]
[1744339703712,11.08358802,114.59,114.51,12.41308949]
[1744339703912,36.88,114.58,114.53,8.7372]
[1744339704112,0.06581827,114.57,114.54,19.71810153]
[1744339704310,36.88,114.61,114.57,8.7339]
[1744339704514,36.88,114.61,114.56,13.25918802]
[1744339704713,36.88,114.61,114.57,8.41396761]
[1744339705014,36.88,114.61,114.58,8.733]
[1744339705211,45.6112,114.61,114.56,13.25918802]
[1744339705521,0.06133972,114.6,114.57,21.04280482]
[1744339705820,0.06133972,114.6,114.57,8.79113576]
[1744339706016,28.97361331,114.6,114.57,8.79113576]
[1744339707721,0.06133972,114.6,114.57,8.79113576]
[1744339707923,0.06133972,114.6,114.58,8.7332]